Cogmind - Beta 14 @@@ ROGUE MODE // 2024.08.22 @ 17:27:13 Player: cabin Result: Destroyed by G-47 Trooper with Particle Gun Performance ------------- Evolutions (0) 0 Regions Visited (2) 400 Robots Destroyed (25) 125 Value Destroyed (469) 469 Prototype IDs (0) 0 Alien Tech Used (0) 0 Bonus (0) 0 TOTAL SCORE: 994 Bonus ------- None Cogmind --------- Core Integrity 0/250 Matter 287/300 Energy 36/100 System Corruption 1% Temperature Cool (9) Movement Walking (120) Location -10/Mines Parts ------- > --- POWER (1) -------- (None) > --- PROPULSION (2) --- Aluminum Leg > --- UTILITY (2) ------ Heat Sink Core Shielding > --- WEAPON (2) ------- Light Assault Rifle > --- INVENTORY (5) ---- Light Nuclear Core Aluminum Leg Medium Storage Unit Peak State ------------ > --- POWER ------------ Light Nuclear Core > --- PROPULSION ------- Aluminum Leg Aluminum Leg > --- UTILITY ---------- Terrain Scanner Seismic Detector > --- WEAPON ----------- Small Laser Assault Rifle > --- INVENTORY -------- Hover Unit [Rating: 9] Favorites ----------- Power Light Ion Engine Engine Light Ion Engine Power Core Light Nuclear Core Propulsion Aluminum Leg Leg Aluminum Leg Hover Unit Hover Unit Utility Seismic Detector Device Seismic Detector Protection Core Shielding Weapon Assault Rifle Energy Gun Small Laser Ballistic Gun Assault Rifle Launcher Grenade Launcher Impact Weapon Hammer Build | -11 -10 -10 ------- Run | Yrd Mat Min Slots Evolved . | . . . Power . | . . . Propulsion . | . . . Utility . | . . . Weapon . | . . . Parts Attached 22 | 6 11 5 Power 2 | 1 1 . Engine 1 | 1 . . Core 1 | . 1 . Reactor . | . . . Propulsion 7 | 2 4 1 Treads . | . . . Leg 5 | 2 2 1 Wheel . | . . . Hover 2 | . 2 . Flight . | . . . Utility 4 | 1 2 1 Device 3 | 1 2 . Storage . | . . . Processor . | . . . Hackware . | . . . Protection 1 | . . 1 Artifact . | . . . Weapon 9 | 2 4 3 Energy Gun 3 | . 1 2 Energy Cannon . | . . . Ballistic Gun 4 | 2 1 1 Ballistic Cannon . | . . . Launcher 1 | . 1 . Special Weapon . | . . . Impact Weapon 1 | . 1 . Slashing Weapon . | . . . Piercing Weapon . | . . . Special Melee Weapon . | . . . Unidentified Prototypes . | . . . Parts Lost 7 | . 4 3 Power . | . . . Propulsion 3 | . 2 1 Utility . | . . . Weapon 4 | . 2 2 Highest Loss Streak 3 | . 1 3 To Critical Strikes . | . . . Average Slot Usage (%) 84 | . 87 61 Engine 3 | . 4 . Core 5 | . 5 . Leg 22 | . 24 7 Hover 1 | . . 10 Device 26 | . 27 21 Energy Gun 12 | . 12 12 Ballistic Gun 7 | . 7 1 Launcher 1 | . 1 . Impact Weapon 1 | . 1 . Peak Build Rating 9 | 6 9 6 Average Rating 6 | 5 7 4 On Entrance 3 | . 6 3 Naked Turns . | . . . Heaviest Build 10 | 7 10 4 Greatest Support 20 | 20 20 10 Greatest Overweight (x) 2 | . 2 . Average Overweight (x) . | . . . Largest Inventory Capacity 5 | 5 5 5 Average Capacity 5 | 5 5 5 Most Carried 5 | 2 5 5 Average Carried 1 | . 1 3 Final Capacity 5 | 5 5 5 Final Carried 5 | 1 5 3 Class Distribution -------------------- 89% | Mutant 10% | Scavenger-Mutant Dominant Class ---------------- Mutant | -10/Materials Scavenger-Mutant | -10/Mines Resources | -11 -10 -10 ----------- Run | Yrd Mat Min Matter Collected 548 | 284 239 25 Remotely . | . . . Salvage Created 624 | 45 496 83 Parts 49 | 2 35 12 Haulers Intercepted . | . . . Recyclers Shooed 7 | . 6 1 Parts Field Recycled . | . . . Retrieved Matter . | . . . Parts Self-Destructed . | . . . Prevented . | . . . Kills | -11 -10 -10 ------- Run | Yrd Mat Min Combat Hostiles Destroyed 16 | 1 12 3 Guns 14 | 1 10 3 AOE 2 | . 2 . Classes Destroyed 8 | 1 7 . Worker 3 | . 2 1 Builder 1 | . 1 . Tunneler 2 | . 1 1 Recycler 1 | . 1 . Mechanic 1 | . 1 . Watcher 1 | . 1 . Swarmer 7 | . 4 3 Grunt 9 | 1 8 . Best Kill Streak 7 | 1 7 5 Combat Bots Only 4 | 1 4 3 Max Kills in Single Turn 4 | 1 4 2 Gunslinging . | . . . Exploded 1 | . 1 . Melee . | . . . Uniques/NPCs Destroyed . | . . . Combat | -11 -10 -10 -------- Run | Yrd Mat Min Hostile Shots Fired 135 | 7 75 53 Missed 49 | 3 26 20 Damage Taken 913 | 43 555 315 Core 251 | 12 109 130 Absorbed by Shields . | . . . Redirected to Shielding 20 | . . 20 Regen/Repaired (Parts) 25 | . 25 . Core Remaining (%) 95 | 95 . . Volleys Fired 86 | 6 65 15 Largest 2 | 2 2 2 Hottest 70 | 40 70 70 Shots Fired 126 | 12 90 24 Gun 122 | 12 86 24 Cannon . | . . . Launcher 4 | . 4 . Special . | . . . Kinetic 62 | 12 47 3 Thermal 60 | . 39 21 Explosive 4 | . 4 . Electromagnetic . | . . . Robot Hit Streak 10 | 10 5 5 Robot Miss Streak 6 | . 6 3 Penetration Max . | . . . Secondary Targets 1 | . . 1 Max Gunslinging Chain 1 | . . 1 Shots Hit Robots 66 | 10 42 14 Core Hits 47 | 3 39 5 Critical Kills . | . . . Critical Parts Destroyed 1 | 1 . . Critical Strikes 1 | 1 . . Destroy 1 | 1 . . Melee Attacks . | . . . Impact . | . . . Slashing . | . . . Piercing . | . . . Sneak Attacks . | . . . Combat Hostiles . | . . . Follow-up Attacks . | . . . Damage Inflicted 1380 | 99 1145 136 Guns 721 | 99 486 136 Cannons . | . . . Explosions 632 | . 632 . Melee . | . . . Ramming 27 | . 27 . Kinetic 397 | 99 288 10 Thermal 324 | . 198 126 Explosive 632 | . 632 . Electromagnetic . | . . . Impact . | . . . Slashing . | . . . Piercing . | . . . Highest Corruption 1 | . 1 1 Average Corruption 1 | . 1 1 Corruption Purged . | . . . Corruption Blocked . | . . . Effects 3 | . 3 . Data Loss (major) 1 | . 1 . Weapon Failures 2 | . 2 . Overload Shots . | . . . Overflow Damage 65 | . 65 . Projectiles . | . . . Explosions 65 | . 65 . Melee . | . . . Knockbacks . | . . . Impact . | . . . Kinetic . | . . . Secondary . | . . . Self-Inflicted Damage 39 | . 39 . Shots 1 | . 1 . Rammed 1 | . 1 . Targets Rammed 11 | . 11 . Kicked 10 | . 10 . Crushed . | . . . Highest Temperature 57 | 12 57 . Average Temperature 15 | 9 15 . Received Heat Transfer 255 | 24 180 51 Siege Activations . | . . . Robots Corrupted . | . . . Combat Hostiles . | . . . Parts Fried . | . . . Impact Corruptions . | . . . Robots Melted . | . . . Combat Hostiles . | . . . Parts Melted . | . . . Heat Transferred 944 | . 523 421 Parts Sabotaged . | . . . Parts Stolen . | . . . Parts Stripped . | . . . Power Chain Reactions . | . . . Alert | -11 -10 -10 ------- Run | Yrd Mat Min Peak Influence 310 | 20 310 150 Initial 90 | . . 90 Average 63 | 5 157 108 Maximum Alert Level 1 | . 1 . Low Security (%) 84 | 100 55 100 Level 1 15 | . 44 . Level 2 . | . . . Level 3 . | . . . Level 4 . | . . . Level 5 . | . . . High Security . | . . . Max Security . | . . . Squads Dispatched 2 | . 2 . Investigation 1 | . 1 . Extermination . | . . . Reinforcement 1 | . 1 . Assault . | . . . Garrison . | . . . Intercept . | . . . Searches Triggered . | . . . Construction Impeded . | . . . Haulers Reinforced . | . . . Active Scanning Responses . | . . . Cargo Convoy Interrupts . | . . . Stealth | -11 -10 -10 --------- Run | Yrd Mat Min Distress Signals 2 | . 2 . Communications Jammed . | . . . Distress Signals . | . . . Times Spotted 34 | 1 28 5 Peak Tracking Total 4 | 1 4 3 Tactical Retreats 2 | . 2 . Traps | -11 -10 -10 ------- Run | Yrd Mat Min Traps Triggered . | . . . Indirectly . | . . . Trap Hack Attempts . | . . . Triggered . | . . . Disarmed . | . . . Reprogrammed . | . . . Reused . | . . . Traps Extracted . | . . . Installed . | . . . Triggered . | . . . Machines | -11 -10 -10 ---------- Run | Yrd Mat Min Machines Disabled 1 | . 1 . Max in Single Turn 1 | . 1 . Machines Repaired . | . . . Machines Dismantled . | . . . Machines Sabotaged . | . . . Overloaded Fab Kills . | . . . Hacking | -11 -10 -10 --------- Run | Yrd Mat Min Machines Accessed 4 | . 4 . Terminals 2 | . 2 . Fabricators . | . . . Repair Stations 1 | . 1 . Recycling Units 1 | . 1 . Scanalyzers . | . . . Garrison Access . | . . . Total Hacks 14 | . 14 . Successful 10 | . 10 . Failed 4 | . 4 . Catastrophic 1 | . 1 . Database Lockouts . | . . . Manual . | . . . Terminals 6 | . 6 . Fabricators . | . . . Repair Stations 5 | . 5 . Recycling Units 3 | . 3 . Scanalyzers . | . . . Garrison Access . | . . . Terminal Hacks 5 | . 5 . Record 2 | . 2 . Terminal Index 1 | . 1 . Alert Level 1 | . 1 . Hauler Manifests 1 | . 1 . Fabricator Hacks . | . . . Repair Station Hacks 3 | . 3 . Scan Component 1 | . 1 . Repair 1 | . 1 . Refit 1 | . 1 . Recycling Unit Hacks 2 | . 2 . Process 1 | . 1 . Retrieve Matter 1 | . 1 . Scanalyzer . | . . . Garrison Access Hacks . | . . . Unauthorized Hacks . | . . . Terminals . | . . . Fabricators . | . . . Repair Stations . | . . . Recycling Units . | . . . Scanalyzers . | . . . Garrison Access . | . . . Data Cores Recovered . | . . . Used . | . . . Hacking Detections 1 | . 1 . Full Trace Events 1 | . 1 . Feedback Events 1 | . 1 . Corruption 1 | . 1 . Feedback Blocked . | . . . Robot Schematics Acquired . | . . . Robots Built . | . . . Authchips . | . . . Time . | . . . Total Robot Build Rating . | . . . Part Schematics Acquired . | . . . Parts Built . | . . . Authchips . | . . . Time . | . . . Total Part Build Rating . | . . . Parts Repaired 1 | . 1 . Time 26 | . 26 . Parts Recycled . | . . . Recycled Matter 144 | . 144 . Retrieved Matter 234 | . 234 . Retrieved Components . | . . . Parts Scanalyzed . | . . . Part Schematics Acquired . | . . . Parts Damaged . | . . . Bothacking | -11 -10 -10 ------------ Run | Yrd Mat Min Used RIF Installer . | . . . Robots Hacked . | . . . Non-combat . | . . . Combat . | . . . Robot Hacks Applied . | . . . Relay Couplers Released . | . . . Fabnet Peak Effective % . | . . . Robots Rewired . | . . . Allies Hacked . | . . . Hacks Repelled . | . . . Allies | -11 -10 -10 -------- Run | Yrd Mat Min Total Allies . | . . . Largest Group . | . . . Highest-Rated Group . | . . . Highest-Rated Ally . | . . . Total Orders . | . . . Ally Attacks . | . . . Total Damage . | . . . Kills . | . . . Allies Corrupted . | . . . Allies Melted . | . . . Intel | -11 -10 -10 ------- Run | Yrd Mat Min Robot Analysis Total . | . . . Derelict Logs Recovered . | . . . Drone Launches . | . . . Drone Recoveries . | . . . Exploration | -11 -10 -10 ------------- Run | Yrd Mat Min Turns Passed 1904 | 1154 658 92 Spaces Moved 660 | 205 396 59 Core 22 | 16 6 . Treads . | . . . Legs 534 | 189 340 5 Wheels . | . . . Hover 104 | . 50 54 Flight . | . . . Fastest Speed 50 | 50 60 60 Average Speed 109 | 114 112 65 Slowest Speed 150 | 120 150 120 Overloaded Moves . | . . . Propulsion Burnouts . | . . . Robots Hopped . | . . . Cave-ins Triggered . | . . . Exploration Rate (%) 26 | 21 36 21 Regions Visited 2 Branch Regions 1 Pre-discovered Areas . | . . . Known Exits Taken . | . . . Unknown Exits Taken 2 | 1 1 . Scrap Searched . | . . . Spaces Dug . | . . . Terrain Destroyed 19 | . 19 . Melee . | . . . Projectile . | . . . AOE 19 | . 19 . Terrain Rammed . | . . . Walls Destroyed . | . . . Machines Disabled . | . . . Actions | -11 -10 -10 --------- Run | Yrd Mat Min Total 1719 | 1113 516 90 Wait 911 | 890 14 7 Move 658 | 204 395 59 Hop . | . . . Pick Up 20 | 7 10 3 Fast Attach . | . . . Attach 21 | 6 10 5 Detach 5 | . 5 . Swap 1 | . 1 . Drop 6 | . 5 1 Fire 86 | 6 65 15 Melee . | . . . Ram 1 | . 1 . Kick 10 | . 10 . Crush . | . . . Escape Stasis . | . . . Rewire . | . . . Trap . | . . . Miscellaneous . | . . . Route ------- -11/Scrapyard -10/Materials -10/Mines History --------- Turn | Location | Event 2 | -11/Scrapyard | Met Revision 17 55 | -11/Scrapyard | Discovered new exit (range 8) 1155 | -11/Scrapyard | Entered Materials 1156 | -10/Materials | Build established: Mutant 1166 | -10/Materials | Discovered new exit (range 15) 1585 | -10/Materials | Repaired Assault Rifle? 1813 | -10/Materials | Entered Mines 1850 | -10/Mines | Core integrity fell below 50% 1872 | -10/Mines | Met a Derelict bent on vengeance 1883 | -10/Mines | Core integrity fell below 20% 1905 | -10/Mines | Destroyed by G-47 Trooper with Particle Gun Last Messages --------------- Acquired Med. Storage Unit. Dropped Seismic Detector. S-10 Pest destroyed. R-06 Scavenger collects Lgt. Ion Engine. K-01 Serf collects debris. S-10 Pest destroyed. K-01 Serf destroyed. R-06 Scavenger collects Lgt. Assault Rifle. T-07 Excavator destroyed. Switching to secondary target: G-47 Trooper. Sml. Laser destroyed. Hover Unit destroyed. G-34 Mercenary destroyed. S-10 Pest destroyed. Backup Laser I destroyed. Acquired 13 matter. Acquired 12 matter. Acquired Lgt. Assault Rifle. R-06 Scavenger collects Flight Unit. [Achievement: First Step to Greatness] Map ----- +----------------------------------------------------+ | ??????????????????????????????????????? ???? | | ???????????????????????????????????????? ???? | | ???????????????????????????????????????? #???? | | ????????????????????????????????????????? ##??? | | ?????????????????????????????????????????? ##?? | | ???????????????????????# ?????????????????# ##? | | ??????????????????????## ????????????????# ## | | ??????????????????????? #??????????????## # | | ???????????????????????? #??####????#### | | ????????????????????????? ### ##??## | | ?????????????????????????? #??# # | | ??????????????????????????? #??# # | | ???????????????????????????? ??## # | | ?????????????????????????????# ????## ## ## # | | ??????????????????????????????# ?????# ###### # | | ???????????????????????????????# ####### #????# # | | ???????????????????????????????# #???## # | | ???????????????????????????????# #########??## | | ???????????????????????????????# ######?????# | | ???????????????????????????????# #?????# | | ??????????????????????????????## #### #?????# | | ??????????????????????????????#! ##?????????## | | ???????????????# ???????????##%= #??????????## | | ???????????????# ##########!=*[#???????????#### | | ???????????????# r !=g*%! #??????????????# | | ???????????????# @%=% = ##??????????????? | | ???????????????# ##### ** ###???????????????? | | ?????????????????????????#= % ##?????????????????? | | ?????????????????????????# #??????????????????? | | ?????????????????????????##! ##??????????????????? | | ??????????????????????????####???????????????????? | | ?????????????????????????????????????????????????? | | ?????????????????????????????????????????????????? | | ?????????????????????????????????????????????????? | | ?????????????????????????????????????????????????? | | ?????????????????????????????????????????????????? | | ?????????????????????????????????????????????????? | | ?????????????????????????????????????????????????? | | ?????????????????????????????????????????????????? | | ?????????????????????????????????????????????????? | | ?????????????????????????????????????????????????? | | ?????????????????????????????????????????????????? | | ?????????????????????????????????????????????????? | | ?????????????????????????????????????????????????? | | ?????????????????????????????????????????????????? | | ?????????????????????????????????????????????????? | | ?????????????????????????????????????????????????? | | ?????????????????????????????????????????????????? | | ?????????????????????????????????????????????????? | | ?????????????????????????????????????????????????? | +----------------------------------------------------+ Best States ------------- Heat Dissipation 35 Energy Generation 14 Energy Capacity 160 Matter Stores 300 Matter Capacity 300 Sight Range 16 Terrain Scan Range 14 Terrain Scan Density 10 Core Shielding 20 Evasion (%) 55 Item Schematics ----------------- None Robot Schematics ------------------ None Fabricated ------------ Nothing Alien Tech Used ----------------- None Achievements -------------- First Step to Greatness Hey, That's Mine! Part-time Mechanic Shopping List Storm Trooper Uninvited Guest Challenges ------------ None Game ------ Seed HardenedMissileProcessor Manual? 0 Play Time 00:24:36 Cumulative 0.6 hours Start 2024.08.22 @ 13:21:51 End 2024.08.22 @ 17:27:13 Sessions 2 Manual Loads 0 Difficulty Rogue Special Mode None Game No. 2 Rogue 1 Adventurer 1 Explorer 0 Win Type - Total 0 Types 0/0/0/0/0/0/0/0/0 Lore% 0 Gallery% 1 Achievement% 3 Wizard Run 0 Options --------- Layout 0 ASCII 0 Keyboard 0 Movement Mouse Keybinds 0 Fullscreen 1 Font 18/SmallcapsGlow Map View 38x25 Zoom Use 9% Tactical HUD 0 Map Filters NONE Filters NONE Steam 1 RUN: fd78e6cd-4fa5-4f76-9e20-0931b4f8cfdb